lending/lending_fUSD_20240401
["ID","MTS","AMOUNT","RATE_DAILY","PERIOD"]
[321217086,1711986641263,-500.0,0.00054794,120]
[321217088,1711986641273,-500.0,0.00054794,120]
[321217090,1711986641282,-1000.0,0.00054794,120]
[321217092,1711986641292,-500.0,0.00054794,120]
[321217094,1711986641302,-534.84021915,0.00054794,120]
[321217096,1711986641311,-500.0,0.00054794,120]
[321217098,1711986641327,-500.0,0.00054794,120]
[321217100,1711986641336,-500.0,0.00054794,120]
[321217102,1711986641347,-500.0,0.00054794,120]
[321217104,1711986641357,-549.97249271,0.00054794,120]
[321217106,1711986641367,-500.0,0.00054794,120]
[321217108,1711986641376,-500.0,0.00054794,120]
[321217110,1711986641385,-500.0,0.00054794,120]
[321217112,1711986641394,-500.0,0.00054794,120]
[321217113,1711986641405,-346.78,0.00054794,120]
[321217114,1711986641415,-354.74750195,0.00054794,120]
[321217115,1711986641424,-500.0,0.00054794,120]
[321217117,1711986641434,-500.0,0.00054794,120]
[321217119,1711986641443,-500.0,0.00054794,120]
[321217121,1711986641452,-500.0,0.00054794,120]
[321217123,1711986641461,-500.0,0.00054794,120]
[321217125,1711986641470,-1245.63,0.00054795,2]
[321217127,1711986641480,-463.17,0.00054856,2]
[321217129,1711986641489,-2468.04700296,0.00054968,27]
[321217131,1711986641498,-362.4538214,0.00054968,2]
[321217133,1711986641508,-2232.91023114,0.00055,60]
[321217135,1711986641517,-8605.2696411,0.00055,14]
[321217137,1711986641526,-479.17793887,0.00055068,120]
[321217139,1711986641535,-502.80582328,0.00055068,120]
[321217141,1711986641545,-206.82579634,0.00055068,120]
[321217143,1711986641554,-500.0,0.00055068,120]
[321217145,1711986641564,-500.0,0.00055068,120]
[321217147,1711986641573,-500.0,0.00055068,30]
[321217149,1711986641582,-500.0,0.00055068,120]
[321217152,1711986641598,-386.41,0.00055068,120]
[321217154,1711986641607,-500.0,0.00055068,120]
[321217156,1711986641617,-500.0,0.00055068,120]
[321217158,1711986641626,-500.0,0.00055068,120]
[321217160,1711986641636,-500.0,0.00055068,120]
[321217162,1711986641645,-500.0,0.00055068,120]
[321217164,1711986641654,-500.0,0.00055068,120]
[321217166,1711986641664,-500.0,0.00055068,120]
[321217168,1711986641673,-204.85,0.00055068,120]
[321217170,1711986641682,-285.75,0.00055068,120]
[321217172,1711986641691,-500.0,0.00055068,120]
[321217174,1711986641700,-500.0,0.00055068,120]
[321217176,1711986641709,-500.0,0.00055068,120]
[321217178,1711986641718,-500.0,0.00055068,120]
[321217180,1711986641727,-347.12933086,0.00055068,120]
[321217182,1711986641736,-3000.0,0.00055068,120]
[321217184,1711986641745,-500.0,0.00055068,120]
[321217186,1711986641754,-500.0,0.00055068,120]
[321217188,1711986641763,-598.32044604,0.00055068,120]
[321217190,1711986641772,-500.0,0.00055068,120]
[321217192,1711986641781,-205.69416746,0.00055068,120]
[321217194,1711986641790,-343.63285658,0.00055068,120]
[321217195,1711986641800,-180.99155813,0.00055068,120]
[321217196,1711986641809,-537.80493192,0.00055068,120]
[321217197,1711986641819,-500.0,0.00055068,120]
[321217198,1711986641828,-361.18390294,0.00055068,120]
[321217199,1711986641837,-500.0,0.00055068,120]
[321217200,1711986641849,-500.0,0.00055068,120]
[321217201,1711986641858,-541.85,0.00055068,120]
[321217202,1711986641871,-500.0,0.00055068,120]
[321217203,1711986641880,-500.0,0.00055068,120]
[321217204,1711986641889,-150.38589302,0.00055068,120]
[321217205,1711986641898,-829.0,0.00055068,120]
[321217206,1711986641908,-500.0,0.00055068,120]
[321217207,1711986641917,-500.0,0.00055068,120]
[321217208,1711986641926,-500.0,0.00055068,120]
[321217209,1711986641936,-500.0,0.00055068,120]
[321217210,1711986641945,-537.72351223,0.00055068,120]
[321217211,1711986641955,-516.59,0.00055068,120]
[321217212,1711986641964,-245.62,0.00055068,120]
[321217213,1711986641973,-522.59360662,0.00055068,120]
[321217214,1711986641983,-576.37,0.00055068,120]
[321217215,1711986641994,-580.29,0.00055068,120]
[321217216,1711986642004,-381.54147324,0.00055068,120]
[321217217,1711986642014,-517.04931197,0.00055068,120]
[321217218,1711986642024,-188.63,0.00055068,120]
[321217219,1711986642033,-500.0,0.00055068,120]
[321217220,1711986642044,-500.0,0.00055068,120]
[321217221,1711986642053,-532.77600927,0.00055068,120]
[321217222,1711986642064,-579.08,0.00055068,120]
[321217223,1711986642074,-500.0,0.00055068,120]
[321217224,1711986642084,-500.0,0.00055068,120]
[321217225,1711986642096,-500.0,0.00055068,120]
[321217226,1711986642106,-341.08780577,0.00055068,120]
[321217227,1711986642116,-500.0,0.00055068,120]
[321217228,1711986642125,-544.03199106,0.00055068,120]
[321217229,1711986642138,-500.0,0.00055068,120]
[321217230,1711986642148,-266.99228674,0.00055068,120]
[321217231,1711986642157,-500.0,0.00055068,120]
[321217232,1711986642167,-500.0,0.00055068,120]
[321217233,1711986642176,-500.0,0.00055068,120]
[321217234,1711986642187,-500.0,0.00055068,120]
[321217235,1711986642196,-500.0,0.00055068,120]
[321217236,1711986642205,-500.0,0.00055068,120]
[321217237,1711986642215,-500.0,0.00055068,120]
[321217239,1711986642224,-500.0,0.00055068,120]
[321217241,1711986642234,-500.0,0.00055068,120]
[321217243,1711986642243,-500.0,0.00055068,120]
[321217245,1711986642252,-500.0,0.00055068,120]
[321217246,1711986642262,-500.0,0.00055068,120]
[321217247,1711986642271,-500.0,0.00055068,120]
[321217248,1711986642280,-500.0,0.00055068,120]
[321217249,1711986642290,-500.0,0.00055068,120]
[321217250,1711986642299,-500.0,0.00055068,120]
[321217251,1711986642308,-500.0,0.00055068,120]
[321217252,1711986642319,-491.71,0.00055068,120]
[321217253,1711986642329,-758.31,0.00055068,120]
[321217254,1711986642340,-500.0,0.00055068,120]
[321217255,1711986642352,-500.0,0.00055068,120]
[321217258,1711986642362,-500.0,0.00055068,120]
[321217260,1711986642371,-500.0,0.00055068,120]
[321217261,1711986642382,-500.0,0.00055068,120]
[321217262,1711986642391,-886.07,0.00055068,120]
[321217263,1711986642400,-398.16,0.00055068,120]
[321217264,1711986642410,-582.95,0.00055068,120]
[321217266,1711986642422,-500.0,0.00055068,120]
[321217268,1711986642432,-500.0,0.00055068,120]
[321217270,1711986642442,-500.0,0.00055068,120]
[321217271,1711986642452,-500.0,0.00055068,120]
[321217272,1711986642462,-607.24,0.00055068,120]
[321217273,1711986642472,-500.0,0.00055068,120]
[321217274,1711986642482,-500.0,0.00055068,120]
[321217275,1711986642492,-500.0,0.00055068,120]
[321217277,1711986642501,-500.0,0.00055068,120]
[321217279,1711986642511,-540.59,0.00055068,120]
[321217281,1711986642521,-621.45,0.00055068,120]
[321217283,1711986642531,-500.0,0.00055068,120]
[321217285,1711986642540,-500.0,0.00055068,120]
[321217287,1711986642550,-307.85,0.00055068,120]
[321217288,1711986642560,-500.0,0.00055068,120]
[321217289,1711986642571,-500.0,0.00055068,120]
[321217290,1711986642581,-1939.56,0.00055068,120]
[321217291,1711986642594,-500.0,0.00055068,120]
[321217292,1711986642603,-217.38311826,0.00055068,120]
[321217293,1711986642613,-500.0,0.00055068,120]
[321217294,1711986642623,-500.0,0.00055068,120]
[321217295,1711986642632,-1528.4,0.00055068,120]
[321217296,1711986642642,-1096.06,0.00055068,120]
[321217297,1711986642653,-500.0,0.00055068,120]
[321217298,1711986642663,-500.0,0.00055068,120]
[321217299,1711986642673,-500.0,0.00055068,120]
[321217300,1711986642683,-500.0,0.00055068,120]
[321217301,1711986642693,-618.84332121,0.00055068,120]
[321217302,1711986642703,-500.0,0.00055068,120]
[321217303,1711986642713,-500.0,0.00055068,120]
[321217304,1711986642723,-500.0,0.00055068,120]
[321217305,1711986642733,-500.0,0.00055068,120]
[321217306,1711986642743,-500.0,0.00055068,120]
[321217307,1711986642753,-500.0,0.00055068,21]
[321217308,1711986642763,-500.0,0.00055068,120]
[321217309,1711986642774,-1000.0,0.00055068,120]
[321217310,1711986642783,-500.0,0.00055068,120]
[321217311,1711986642793,-500.0,0.00055068,120]
[321217312,1711986642803,-500.0,0.00055068,120]
[321217313,1711986642813,-500.0,0.00055068,120]
[321217314,1711986642823,-500.0,0.00055068,120]
[321217315,1711986642833,-263.94449657,0.00055068,120]
[321217316,1711986642845,-500.0,0.00055068,120]
[321217317,1711986642855,-500.0,0.00055068,120]
[321217318,1711986642865,-500.0,0.00055068,120]
[321217319,1711986642875,-500.0,0.00055068,120]
[321217320,1711986642885,-500.0,0.00055068,120]
[321217321,1711986642895,-500.0,0.00055068,120]
[321217322,1711986642905,-223.13,0.00055068,120]
[321217323,1711986642915,-151.0,0.00055068,120]
[321217324,1711986642925,-170.86,0.00055277,2]
[321217325,1711986642935,-696.79162779,0.0005534,4]
[321217326,1711986642945,-155.0,0.0005534,4]
[321217327,1711986642964,-546.50145406,0.0005534,4]
[321217328,1711986642976,-520.65323763,0.0005534,4]
[321217329,1711986642986,-155.72422966,0.0005534,4]
[321217330,1711986642996,-6549.1353535,0.0005534,4]
[321217331,1711986643006,-155.68798612,0.0005534,4]
[321217332,1711986643016,-155.0,0.0005534,4]
[321217333,1711986643026,-780.88336166,0.00055341,4]
[321217334,1711986643036,-391.0861516,0.00055341,4]
[321217335,1711986643046,-318.00032527,0.00055341,2]
[321217336,1711986643056,-500.0,0.00055342,120]
[321217337,1711986643065,-500.0,0.00055342,120]
[321217338,1711986643075,-512.40408146,0.00055342,30]
[321217339,1711986643085,-500.0,0.00055342,120]
[321217340,1711986643097,-501.70513447,0.00055342,120]
[321217341,1711986643106,-500.0,0.00055342,120]
[321217342,1711986643117,-500.0,0.00055342,120]
[321217343,1711986643127,-174.81,0.00055342,120]
[321217344,1711986643137,-500.0,0.00055342,120]
[321217345,1711986643147,-531.35928141,0.00055342,120]
[321217346,1711986643157,-3000.0,0.00055342,120]
[321217347,1711986643167,-500.0,0.00055342,120]
[321217348,1711986643177,-500.0,0.00055342,120]
[321217349,1711986643187,-500.0,0.00055342,120]
[321217350,1711986643197,-500.0,0.00055342,120]
[321217351,1711986643207,-541.85,0.00055342,120]
[321217352,1711986643216,-500.0,0.00055342,120]
[321217353,1711986643227,-829.0,0.00055342,120]
[321217354,1711986643237,-500.0,0.00055342,120]
[321217355,1711986643247,-500.0,0.00055342,120]
[321217356,1711986643257,-500.0,0.00055342,120]
[321217357,1711986643267,-576.37,0.00055342,120]
[321217358,1711986643277,-580.29,0.00055342,120]
[321217359,1711986643287,-500.0,0.00055342,120]
[321217360,1711986643297,-579.08,0.00055342,120]
[321217361,1711986643307,-500.0,0.00055342,120]
[321217362,1711986643319,-500.0,0.00055342,120]
[321217363,1711986643330,-500.0,0.00055342,120]
[321217365,1711986643340,-500.0,0.00055342,120]
[321217366,1711986643352,-500.0,0.00055342,120]
[321217367,1711986643362,-500.0,0.00055342,120]
[321217368,1711986643373,-500.0,0.00055342,120]
[321217369,1711986643383,-500.0,0.00055342,120]
[321217370,1711986643393,-500.0,0.00055342,120]
[321217371,1711986643402,-500.0,0.00055342,120]
[321217372,1711986643412,-500.0,0.00055342,120]
[321217373,1711986643422,-500.0,0.00055342,120]
[321217374,1711986643432,-500.0,0.00055342,120]
[321217375,1711986643442,-454.88,0.00055342,120]
[321217376,1711986643451,-500.0,0.00055342,120]
[321217377,1711986643461,-500.0,0.00055342,120]
[321217378,1711986643471,-500.0,0.00055342,120]
[321217379,1711986643480,-614.72,0.00055342,120]
[321217380,1711986643490,-500.0,0.00055342,120]
[321217381,1711986643500,-500.0,0.00055342,120]
[321217382,1711986643510,-500.0,0.00055342,120]
[321217383,1711986643519,-500.0,0.00055342,120]
[321217384,1711986643529,-758.31,0.00055342,120]
[321217385,1711986643540,-423.79,0.00055342,120]
[321217386,1711986643550,-500.0,0.00055342,120]
[321217387,1711986643560,-500.0,0.00055342,120]
[321217388,1711986643570,-500.0,0.00055342,120]
[321217389,1711986643579,-886.07,0.00055342,120]
[321217390,1711986643589,-582.95,0.00055342,120]
[321217391,1711986643601,-500.0,0.00055342,120]
[321217392,1711986643610,-607.24,0.00055342,120]
[321217393,1711986643619,-488.96,0.00055342,120]
[321217394,1711986643629,-500.0,0.00055342,120]
[321217395,1711986643639,-500.0,0.00055342,120]
[321217396,1711986643648,-500.0,0.00055342,120]
[321217397,1711986643661,-621.45,0.00055342,120]
[321217398,1711986643671,-500.0,0.00055342,120]
[321217399,1711986643681,-500.0,0.00055342,120]
[321217400,1711986643691,-500.0,0.00055342,120]
[321217401,1711986643701,-1939.56,0.00055342,120]
[321217402,1711986643711,-500.0,0.00055342,120]
[321217403,1711986643721,-500.0,0.00055342,120]
[321217404,1711986643730,-500.0,0.00055342,120]
[321217405,1711986643740,-1528.4,0.00055342,120]
[321217406,1711986643750,-1096.06,0.00055342,120]
[321217407,1711986643760,-500.0,0.00055342,120]
[321217408,1711986643769,-500.0,0.00055342,120]
[321217409,1711986643780,-500.0,0.00055342,120]
[321217410,1711986643791,-500.0,0.00055342,120]
[321217411,1711986643802,-500.0,0.00055342,120]
[321217412,1711986643813,-500.0,0.00055342,120]
[321217413,1711986643825,-500.0,0.00055342,120]
[321217414,1711986643836,-500.0,0.00055342,21]
[321217415,1711986643846,-500.0,0.00055342,120]
[321217416,1711986643857,-1015.6,0.00055342,120]
[321217417,1711986643867,-500.0,0.00055342,120]
[321217418,1711986643876,-500.0,0.00055342,120]
[321217419,1711986643886,-500.0,0.00055342,120]
[321217420,1711986643896,-500.0,0.00055342,120]
[321217421,1711986643907,-590.04,0.00055342,120]
[321217422,1711986643917,-500.0,0.00055342,120]
[321217423,1711986643928,-500.0,0.00055342,120]
[321217424,1711986643937,-511.07,0.00055342,120]
[321217425,1711986643947,-500.0,0.00055342,120]
[321217426,1711986643956,-4074.06878696,0.00055433,2]
[321217427,1711986643966,-500.0,0.0005552,120]
[321217428,1711986643975,-500.0,0.00055615,120]
[321217429,1711986643985,-500.0,0.00055616,120]
[321217430,1711986643994,-500.0,0.00055616,120]
[321217431,1711986644004,-215.93,0.00055616,120]
[321217432,1711986644013,-500.0,0.00055616,120]
[321217433,1711986644023,-500.0,0.00055616,120]
[321217434,1711986644032,-320.89,0.00055616,120]
[321217435,1711986644041,-3000.0,0.00055616,120]
[321217436,1711986644051,-500.0,0.00055616,120]
[321217437,1711986644060,-500.0,0.00055616,120]
[321217438,1711986644070,-500.0,0.00055616,120]
[321217439,1711986644079,-541.85,0.00055616,120]
[321217440,1711986644088,-500.0,0.00055616,120]
[321217441,1711986644098,-829.0,0.00055616,120]
[321217442,1711986644108,-500.0,0.00055616,120]
[321217443,1711986644117,-500.0,0.00055616,120]
[321217444,1711986644127,-500.0,0.00055616,120]
[321217445,1711986644136,-576.37,0.00055616,120]
[321217446,1711986644146,-580.29,0.00055616,120]
[321217447,1711986644155,-500.0,0.00055616,120]
[321217448,1711986644165,-579.08,0.00055616,120]
[321217449,1711986644175,-500.0,0.00055616,120]
[321217450,1711986644188,-615.38,0.00055616,120]
[321217451,1711986644198,-500.0,0.00055616,120]
[321217452,1711986644208,-500.0,0.00055616,120]
[321217453,1711986644218,-500.0,0.00055616,120]
[321217454,1711986644228,-500.0,0.00055616,120]
[321217455,1711986644238,-500.0,0.00055616,120]
[321217456,1711986644248,-500.0,0.00055616,120]
[321217457,1711986644259,-500.0,0.00055616,120]
[321217458,1711986644270,-500.0,0.00055616,120]
[321217459,1711986644281,-500.0,0.00055616,120]
[321217460,1711986644292,-500.0,0.00055616,120]
[321217461,1711986644303,-500.0,0.00055616,120]
[321217462,1711986644314,-500.0,0.00055616,120]
[321217463,1711986644326,-500.0,0.00055616,120]
[321217464,1711986644339,-500.0,0.00055616,120]
[321217465,1711986644350,-500.0,0.00055616,120]
[321217466,1711986644361,-500.0,0.00055616,120]
[321217467,1711986644370,-500.0,0.00055616,120]
[321217468,1711986644381,-500.0,0.00055616,120]
[321217469,1711986644391,-758.31,0.00055616,120]
[321217470,1711986644400,-500.0,0.00055616,120]
[321217471,1711986644409,-500.0,0.00055616,120]
[321217472,1711986644419,-500.0,0.00055616,120]
[321217473,1711986644429,-886.07,0.00055616,120]
[321217474,1711986644439,-582.95,0.00055616,120]
[321217475,1711986644448,-500.0,0.00055616,120]
[321217476,1711986644458,-607.24,0.00055616,120]
[321217477,1711986644468,-500.0,0.00055616,120]
[321217478,1711986644478,-500.0,0.00055616,120]
[321217479,1711986644488,-500.0,0.00055616,120]
[321217480,1711986644497,-621.45,0.00055616,120]
[321217481,1711986644507,-393.37,0.00055616,120]
[321217482,1711986644517,-500.0,0.00055616,120]
[321217483,1711986644526,-286.52243139,0.00055616,120]
[321217484,1711986644537,-1939.56,0.00055616,120]
[321217485,1711986644547,-500.0,0.00055616,120]
[321217486,1711986644557,-500.0,0.00055616,120]
[321217487,1711986644567,-500.0,0.00055616,120]
[321217488,1711986644577,-1528.4,0.00055616,120]
[321217489,1711986644588,-1096.06,0.00055616,120]
[321217490,1711986644601,-500.0,0.00055616,120]
[321217491,1711986644611,-500.0,0.00055616,120]
[321217492,1711986644621,-500.0,0.00055616,120]
[321217493,1711986644634,-500.0,0.00055616,120]
[321217494,1711986644645,-500.0,0.00055616,120]
[321217495,1711986644656,-500.0,0.00055616,120]
[321217496,1711986644667,-500.0,0.00055616,120]
[321217497,1711986644679,-500.0,0.00055616,21]
[321217498,1711986644863,-500.0,0.00055616,120]
[321217499,1711986644876,-500.0,0.00055616,120]
[321217500,1711986644885,-500.0,0.00055616,120]
[321217501,1711986644894,-500.0,0.00055616,120]
[321217502,1711986644904,-220.4,0.00055616,120]
[321217503,1711986644913,-500.0,0.00055616,120]
[321217504,1711986644922,-500.0,0.00055616,120]
[321217505,1711986644931,-500.0,0.00055616,120]
[321217506,1711986644940,-197.27,0.0005576,120]
[321217507,1711986644950,-500.0,0.0005589,120]
[321217508,1711986644959,-500.0,0.0005589,120]
[321217509,1711986644969,-500.0,0.0005589,120]
[321217510,1711986644978,-500.0,0.0005589,120]
[321217511,1711986644987,-372.34,0.0005589,120]
[321217512,1711986644996,-381.18284595,0.0005589,120]
[321217513,1711986645005,-500.0,0.0005589,120]
[321217514,1711986645014,-541.85,0.0005589,120]
[321217515,1711986645024,-250.75,0.0005589,120]
[321217516,1711986645033,-829.0,0.0005589,120]
[321217517,1711986645043,-225.84664416,0.0005589,120]
[321217518,1711986645052,-500.0,0.0005589,120]
[321217519,1711986645062,-412.17,0.0005589,120]
[321217520,1711986645071,-576.37,0.0005589,120]
[321217521,1711986645080,-580.29,0.0005589,120]
[321217522,1711986645089,-500.0,0.0005589,120]
[321217523,1711986645100,-579.08,0.0005589,120]
[321217524,1711986645109,-500.0,0.0005589,120]
[321217525,1711986645119,-500.0,0.0005589,120]
[321217526,1711986645128,-500.0,0.0005589,120]
[321217527,1711986645137,-500.0,0.0005589,120]
[321217528,1711986645146,-500.0,0.0005589,120]
[321217529,1711986645157,-500.0,0.0005589,120]
[321217530,1711986645166,-500.0,0.0005589,120]
[321217531,1711986645176,-500.0,0.0005589,120]
[321217532,1711986645186,-500.0,0.0005589,120]
[321217533,1711986645195,-500.0,0.0005589,120]
[321217534,1711986645206,-500.0,0.0005589,120]
[321217535,1711986645215,-500.0,0.0005589,120]
[321217536,1711986645224,-500.0,0.0005589,120]
[321217537,1711986645233,-500.0,0.0005589,120]
[321217538,1711986645242,-500.0,0.0005589,120]
[321217539,1711986645251,-500.0,0.0005589,120]
[321217540,1711986645261,-500.0,0.0005589,120]
[321217541,1711986645271,-500.0,0.0005589,120]
[321217542,1711986645281,-500.0,0.0005589,120]
[321217543,1711986645291,-758.31,0.0005589,120]
[321217544,1711986645301,-500.0,0.0005589,120]
[321217545,1711986645310,-500.0,0.0005589,120]
[321217546,1711986645325,-500.0,0.0005589,120]
[321217547,1711986645336,-886.07,0.0005589,120]
[321217548,1711986645348,-582.95,0.0005589,120]
[321217549,1711986645358,-500.0,0.0005589,120]
[321217550,1711986645367,-607.24,0.0005589,120]
[321217551,1711986645376,-500.0,0.0005589,120]
[321217552,1711986645385,-582.85,0.0005589,120]
[321217553,1711986645395,-500.0,0.0005589,120]
[321217554,1711986645405,-621.45,0.0005589,120]
[321217555,1711986645415,-500.0,0.0005589,120]
[321217556,1711986645424,-1939.56,0.0005589,120]
[321217557,1711986645433,-500.0,0.0005589,120]
[321217558,1711986645442,-500.0,0.0005589,120]
[321217559,1711986645451,-500.0,0.0005589,120]
[321217560,1711986645460,-1528.4,0.0005589,120]
[321217561,1711986645469,-1096.06,0.0005589,120]
[321217562,1711986645479,-500.0,0.0005589,120]
[321217563,1711986645488,-500.0,0.0005589,120]
[321217564,1711986645498,-500.0,0.0005589,120]
[321217565,1711986645507,-500.0,0.0005589,120]
[321217566,1711986645516,-483.42,0.0005589,120]
[321217567,1711986645526,-500.0,0.0005589,120]
[321217568,1711986645535,-500.0,0.0005589,120]
[321217569,1711986645545,-500.0,0.0005589,21]
[321217570,1711986645554,-357.30002868,0.0005589,120]
[321217571,1711986645563,-500.0,0.0005589,120]
[321217572,1711986645573,-500.0,0.0005589,120]
[321217573,1711986645582,-500.0,0.0005589,120]
[321217574,1711986645591,-500.0,0.0005589,120]
[321217575,1711986645602,-500.0,0.0005589,120]
[321217576,1711986645612,-500.0,0.0005589,120]
[321217577,1711986645621,-3368.5161918,0.00055957,2]
[321217578,1711986645630,-154.51561327,0.00056137,120]
[321217579,1711986645640,-184.063623,0.00056154,7]
[321217580,1711986645649,-500.0,0.00056164,120]
[321217581,1711986645658,-202.64861986,0.00056164,120]
[321217582,1711986645667,-500.0,0.00056164,120]
[321217583,1711986645676,-170.26,0.00056164,120]
[321217584,1711986645685,-641.17558952,0.00056164,120]
[321217585,1711986645694,-541.85,0.00056164,120]
[321217586,1711986645703,-829.0,0.00056164,120]
[321217587,1711986645712,-500.0,0.00056164,120]
[321217588,1711986645722,-576.37,0.00056164,120]
[321217589,1711986645730,-580.29,0.00056164,120]
[321217590,1711986645740,-500.0,0.00056164,120]
[321217591,1711986645749,-579.08,0.00056164,120]
[321217592,1711986645758,-500.0,0.00056164,120]
[321217593,1711986645768,-500.0,0.00056164,120]
[321217594,1711986645777,-500.0,0.00056164,120]
[321217595,1711986645786,-500.0,0.00056164,120]
[321217596,1711986645795,-500.0,0.00056164,120]
[321217597,1711986645804,-500.0,0.00056164,120]
[321217598,1711986645814,-500.0,0.00056164,120]
[321217599,1711986645823,-500.0,0.00056164,120]
[321217600,1711986645832,-500.0,0.00056164,120]
[321217601,1711986645841,-500.0,0.00056164,120]
[321217602,1711986645851,-500.0,0.00056164,120]
[321217603,1711986645860,-500.0,0.00056164,120]
[321217604,1711986645869,-500.0,0.00056164,120]
[321217605,1711986645878,-159.67,0.00056164,120]
[321217606,1711986645887,-500.0,0.00056164,120]
[321217607,1711986645897,-500.0,0.00056164,120]
[321217608,1711986645906,-500.0,0.00056164,120]
[321217609,1711986645915,-500.0,0.00056164,120]
[321217610,1711986645924,-500.0,0.00056164,120]
[321217611,1711986645933,-758.31,0.00056164,120]
[321217612,1711986645943,-500.0,0.00056164,120]
[321217613,1711986645952,-500.0,0.00056164,120]
[321217614,1711986645962,-500.0,0.00056164,120]
[321217615,1711986645971,-886.07,0.00056164,120]
[321217616,1711986645981,-582.95,0.00056164,120]
[321217617,1711986645992,-500.0,0.00056164,120]
[321217618,1711986646002,-607.24,0.00056164,120]
[321217619,1711986646013,-500.0,0.00056164,120]
[321217620,1711986646023,-500.0,0.00056164,120]
[321217621,1711986646034,-621.45,0.00056164,120]
[321217622,1711986646044,-500.0,0.00056164,120]
[321217623,1711986646054,-1939.56,0.00056164,120]
[321217624,1711986646063,-500.0,0.00056164,120]
[321217625,1711986646076,-500.0,0.00056164,120]
[321217626,1711986646088,-500.0,0.00056164,120]
[321217627,1711986646099,-1528.4,0.00056164,120]
[321217628,1711986646111,-1096.06,0.00056164,120]
[321217629,1711986646120,-500.0,0.00056164,120]
[321217630,1711986646130,-500.0,0.00056164,120]
[321217631,1711986646141,-500.0,0.00056164,120]
[321217632,1711986646152,-500.0,0.00056164,120]
[321217633,1711986646163,-500.0,0.00056164,120]
[321217634,1711986646173,-500.0,0.00056164,120]
[321217635,1711986646183,-500.0,0.00056164,21]
[321217636,1711986646194,-500.0,0.00056164,120]
[321217637,1711986646205,-500.0,0.00056164,120]
[321217638,1711986646215,-500.0,0.00056164,120]
[321217639,1711986646224,-500.0,0.00056164,120]
[321217640,1711986646234,-500.0,0.00056164,120]
[321217641,1711986646243,-500.0,0.00056164,120]
[321217642,1711986646252,-151.0,0.00056247,120]
[321217643,1711986646261,-544.0,0.00056302,120]
[321217644,1711986646271,-574.0,0.00056302,120]
[321217645,1711986646281,-576.0,0.00056302,120]
[321217646,1711986646291,-170.8,0.000564,8]
[321217647,1711986646300,-170.8,0.000564,8]
[321217648,1711986646310,-170.8,0.000564,8]
[321217649,1711986646320,-170.8,0.000564,8]
[321217650,1711986646330,-170.8,0.000564,8]
[321217651,1711986646345,-170.8,0.000564,8]
[321217652,1711986646354,-170.8,0.000564,8]
[321217653,1711986646364,-170.8,0.000564,8]
[321217654,1711986646375,-170.8,0.000564,8]
[321217655,1711986646385,-170.8,0.000564,8]